bitfinex-derivatives/quotes_ETHF0:USTF0_20250824
["timestamp","ask_amount","ask_price","bid_price","bid_amount"]
[1756068003472,3.2078,4785.0,4784.5,1.1124]
[1756068003676,1.8033,4785.4,4784.3,1.7404]
[1756068003972,2.787,4786.7,4786.0,0.41795]
[1756068004175,1.8033,4786.5,4785.6,4.3202]
[1756068004379,0.9837,4785.9,4784.4,1.1124]
[1756068004681,3.2078,4785.2,4784.4,1.1124]
[1756068004979,1.1225,4785.1,4784.4,1.1124]
[1756068005276,1.1225,4785.1,4784.1,0.41812]
[1756068005277,2.1062,4785.1,4784.1,0.41812]
[1756068005478,2.787,4785.0,4784.3,1.1124]
[1756068006174,1.1225,4784.8,4784.0,3.2078]
[1756068006374,0.9837,4784.7,4784.0,3.2078]
[1756068006573,2.787,4784.7,4784.0,3.2078]
[1756068007272,2.787,4784.7,4784.1,0.41812]
[1756068007468,2.787,4784.7,4784.0,4.9482]
[1756068007469,2.787,4784.7,4784.2,0.41811]
[1756068007673,2.787,4784.7,4784.1,3.8893]
[1756068008277,1.8033,4785.0,4784.1,2.8528]
[1756068008581,1.8033,4785.0,4784.5,1.1124]
[1756068008779,2.787,4785.0,4784.7,3.8893]
[1756068009081,1.8033,4785.0,4784.4,3.8893]
[1756068009280,1.8033,4785.0,4784.4,4.30739]
[1756068009673,1.8033,4785.0,4784.4,3.8893]
[1756068009876,1.8033,4785.0,4784.5,0.41809]
[1756068010080,1.1225,4785.3,4784.8,1.1124]
[1756068010380,3.2078,4785.6,4784.8,1.7404]
[1756068010575,3.2078,4786.1,4785.2,1.1124]
[1756068010774,3.2078,4786.1,4785.4,2.1489]
[1756068011072,3.2078,4786.1,4786.0,1.0365]
[1756068011277,5.9948,4787.2,4786.8,3.8893]
[1756068011480,3.2078,4787.2,4787.0,3.8893]
[1756068011677,1.8033,4787.7,4787.1,3.8893]
[1756068011880,0.54461246,4787.6,4787.2,3.8893]
[1756068012079,0.54461246,4787.5,4787.4,3.8893]
[1756068012589,21.146,4788.8,4787.4,3.8893]
[1756068012590,3.2078,4788.4,4787.4,4.18836118]
[1756068012774,3.2078,4789.7,4787.7,1.04453]
[1756068012975,3.2078,4789.8,4788.7,0.41772]
[1756068013184,4.094,4788.9,4788.8,3.8893]
[1756068013484,4.094,4788.9,4788.8,7.8893]
[1756068014285,4.094,4788.9,4788.3,1.7404]
[1756068014286,2.787,4788.9,4788.3,1.7404]
[1756068014489,0.9837,4788.9,4788.3,1.7404]
[1756068014682,4.3303,4788.6,4787.8,1.7404]
[1756068015181,3.2078,4788.0,4787.3,1.1124]
[1756068015386,3.2078,4788.0,4787.4,1.7404]
[1756068015982,3.2078,4788.0,4786.7,1.7404]
[1756068016182,1.8033,4787.8,4786.7,1.7404]
[1756068016485,3.2078,4787.6,4786.9,1.7404]
[1756068016990,3.2078,4787.0,4786.3,2.8528]
[1756068017384,3.2078,4786.8,4786.1,3.2078]
[1756068017584,5.314,4786.8,4786.4,2.8528]
[1756068017881,3.2078,4786.8,4786.1,3.2078]
[1756068018088,2.1062,4786.7,4785.9,1.7404]
[1756068018280,2.1062,4786.7,4786.0,1.1124]
[1756068018477,5.0111,4786.8,4784.9,3.2078]
[1756068018478,3.2078,4786.8,4786.4,3.27072]
[1756068018677,3.2078,4786.8,4786.2,0.41794]
[1756068018988,3.2078,4786.8,4786.5,2.8528]
[1756068019183,3.2078,4786.8,4786.7,1.7404]
[1756068019383,7.1173,4786.8,4786.1,1.7404]
[1756068020188,3.2078,4786.2,4786.1,1.7404]
[1756068020583,3.2078,4786.2,4786.1,2.8528]
[1756068021085,5.314,4786.2,4785.5,1.1124]
[1756068021688,2.1062,4785.5,4785.4,1.7404]
[1756068022090,51.213,4788.4,4785.1,1.1124]
[1756068022091,3.2078,4786.2,4785.1,1.1124]
[1756068022388,3.2078,4786.2,4785.4,1.7404]
[1756068022595,3.2078,4786.2,4785.5,1.1124]
[1756068022791,4.3303,4786.2,4785.5,1.1124]
[1756068022990,1.8033,4786.1,4785.5,1.1124]
[1756068023695,2.9258,4785.8,4784.7,24.39587]
[1756068023991,2.9258,4785.8,4784.8,0.41806]
[1756068024192,2.9258,4785.8,4784.9,1.7404]
[1756068024498,0.9837,4785.7,4784.9,1.7404]
[1756068024990,3.2078,4786.4,4785.0,1.1124]
[1756068025184,1.8033,4788.8,4786.8,0.41789]
[1756068025384,1.8033,4788.8,4786.5,2.08957]
[1756068025385,1.8033,4788.8,4788.0,3.2078]
[1756068025991,1.54023,4788.7,4788.0,3.2078]
[1756068026191,1.1225,4788.7,4788.1,0.41777]
[1756068026390,1.54023,4788.7,4788.0,3.2078]
[1756068026789,1.1225,4788.7,4788.0,3.2078]
[1756068028094,1.1279,4788.3,4788.0,3.2078]
[1756068028293,3.9281,4789.3,4788.0,3.2078]
[1756068028494,3.9281,4789.1,4787.8,3.2078]
[1756068028692,3.9281,4789.0,4787.8,3.2078]
[1756068028892,3.9281,4789.3,4787.8,3.2078]
[1756068029091,3.2078,4789.4,4787.8,3.2078]
[1756068029294,3.9281,4789.3,4787.3,3.3185332]
[1756068029484,3.9281,4789.1,4787.3,3.3185332]
[1756068029684,3.2078,4789.4,4787.3,3.7363732]
[1756068029889,3.9281,4788.8,4787.3,3.7363732]
[1756068030084,3.9281,4788.7,4787.3,3.7363732]
[1756068030285,2.924,4788.6,4787.3,3.7363732]
[1756068030493,1.1279,4788.5,4787.4,0.002]
[1756068030696,1.1279,4788.0,4787.4,0.002]
[1756068030888,3.2078,4788.9,4787.4,0.002]
[1756068031202,3.9281,4788.8,4787.4,0.002]
[1756068031398,3.9281,4788.7,4787.4,0.002]
[1756068031691,3.9281,4788.6,4787.4,0.002]
[1756068031891,2.924,4788.5,4787.4,0.002]
[1756068032089,1.1279,4788.4,4787.3,3.2078]
[1756068032287,1.1279,4787.9,4787.3,3.2078]
[1756068032889,3.9281,4788.8,4787.3,3.2078]
[1756068033397,1.1279,4788.6,4787.8,3.2078]
[1756068034597,1.1279,4788.6,4787.1,0.10567959]
[1756068034598,1.1279,4788.6,4788.3,3.2078]
[1756068034799,1.1279,4788.5,4788.3,3.2078]
[1756068035000,1.0041,4789.3,4788.5,0.41773]
[1756068035194,1.1279,4789.0,4788.5,0.41773]
[1756068035497,1.0041,4789.3,4788.9,0.4177]
[1756068035693,1.7961,4789.5,4788.8,3.2078]
[1756068035997,1.1279,4788.9,4788.8,3.2078]
[1756068036594,1.1279,4789.4,4788.8,3.2078]
[1756068036899,1.7961,4789.5,4788.8,3.2078]
[1756068036900,1.1279,4789.2,4789.0,0.41769]
[1756068037494,1.1279,4789.2,4788.8,3.62551]
[1756068037694,1.1279,4789.1,4788.8,3.2078]
[1756068037889,1.1279,4789.4,4788.8,3.2078]
[1756068038399,1.7961,4789.4,4789.3,3.2078]
[1756068038588,2.8002,4789.4,4789.3,3.2078]
[1756068038796,1.7961,4789.6,4787.2,1.1047]
[1756068038994,3.2078,4788.8,4787.2,1.1047]
[1756068039193,3.9281,4788.0,4787.2,1.1047]
[1756068039505,3.9281,4788.6,4787.2,1.1047]
[1756068039810,2.132,4788.0,4787.2,1.1047]
[1756068040009,1.7961,4787.3,4786.6,1.1047]
[1756068040209,5.0039,4787.3,4786.6,1.1047]
[1756068040406,1.7961,4787.2,4786.6,1.1047]
[1756068040606,2.132,4787.1,4786.1,3.2078]
[1756068040808,1.7961,4786.6,4786.1,3.2078]
[1756068041007,2.924,4787.0,4786.1,4.2312]
[1756068041306,2.924,4787.0,4786.1,1.0234]
[1756068041506,1.1279,4787.0,4786.1,1.0234]
[1756068041699,3.2078,4786.6,4786.1,1.0234]
[1756068041905,1.7961,4786.4,4785.7,1.1047]
[1756068042406,1.7961,4786.4,4785.8,1.0234]
[1756068042613,1.7961,4786.9,4786.2,0.41794]
[1756068042807,1.7961,4786.9,4786.4,1.1047]
[1756068043006,1.7961,4786.8,4786.3,0.41793]
[1756068043307,1.1279,4787.1,4786.5,2.1281]
[1756068043513,1.7961,4787.3,4786.5,2.1281]
[1756068044013,2.924,4787.1,4786.5,2.1281]
[1756068045709,1.0041,4787.2,4786.4,0.41792]
[1756068046011,2.8002,4787.2,4786.5,2.1281]
[1756068046209,30.086,4789.8,4785.3,1.04505]
[1756068046210,1.1279,4788.2,4787.7,2.1281]
[1756068046405,1.7961,4788.5,4788.3,0.41775]
[1756068046600,1.7961,4789.2,4788.5,0.41773]
[1756068046804,1.7961,4789.2,4788.4,2.1281]
[1756068047004,1.0041,4789.1,4788.4,2.1281]
[1756068047206,2.924,4789.0,4788.4,2.1281]
[1756068048809,1.7961,4788.9,4788.7,2.1281]
[1756068049116,1.7961,4788.9,4788.8,2.1281]
[1756068049613,2.132,4788.8,4788.3,1.0234]
[1756068049810,1.7961,4788.7,4788.1,2.1281]
[1756068050813,1.7961,4788.7,4787.7,3.2078]
[1756068051017,1.7961,4788.4,4787.7,3.2078]
[1756068051515,1.0041,4788.3,4787.7,3.2078]
[1756068052115,1.0041,4788.3,4787.4,0.41783]
[1756068052416,2.132,4787.6,4787.2,3.2078]
[1756068052606,3.9281,4787.3,4787.2,3.2078]
[1756068052811,1.7961,4787.0,4786.8,1.1047]
[1756068053014,3.2078,4788.1,4786.7,0.41789]
[1756068053216,3.9281,4788.0,4786.7,0.41789]
[1756068053516,3.9281,4787.8,4786.7,0.41789]
[1756068053716,3.2078,4788.1,4786.7,0.41789]
[1756068053918,1.1279,4787.6,4786.7,0.41789]
[1756068054118,1.7961,4787.4,4786.7,0.41789]
[1756068054320,1.7961,4787.4,4786.8,0.18955859]
[1756068054611,1.7961,4787.4,4786.7,3.2078]
[1756068054917,1.7961,4787.6,4787.3,0.41784]
[1756068055119,1.7961,4787.6,4787.5,2.1281]
[1756068055310,3.9281,4787.5,4787.2,0.41785]
[1756068055515,1.0041,4787.4,4787.2,3.62565]
[1756068055818,1.7961,4787.3,4787.2,4.73035]
[1756068056018,1.7961,4787.8,4787.3,0.41784]
[1756068056311,3.9281,4788.4,4787.7,0.41781]
[1756068056516,2.132,4788.4,4787.7,0.41781]
[1756068056716,1.7961,4788.3,4787.6,0.41781]
[1756068057420,1.0041,4788.2,4787.6,0.41781]
[1756068057917,1.0041,4788.2,4787.7,0.41781]
[1756068058118,3.7691,4788.1,4787.7,0.41781]
[1756068058314,1.7211,4787.9,4787.7,2.145]
[1756068058514,1.7211,4787.7,4787.6,0.41781]
[1756068058709,1.0593,4788.9,4787.2,3.2078]
[1756068058915,1.7211,4788.7,4788.5,0.41773]
[1756068059118,0.9887,4789.0,4787.8,3.2078]
[1756068059119,0.9887,4788.8,4788.0,1.1738]
[1756068059418,3.7691,4788.6,4788.3,2.56275]
[1756068059618,1.7211,4788.5,4788.4,2.56274]
[1756068059921,3.2078,4789.1,4788.8,0.41771]
[1756068059922,1.7211,4789.0,4788.8,0.41771]
[1756068060219,3.7691,4788.9,4788.8,0.41771]
[1756068060521,2.048,4789.4,4789.1,1.59148]
[1756068060718,2.7804,4789.3,4789.2,0.9712]
[1756068061017,1.7211,4789.6,4788.4,1.04437]
[1756068061213,1.7211,4789.6,4789.5,2.145]
[1756068062021,1.7211,4789.3,4789.2,2.145]
[1756068062520,1.7211,4789.9,4789.8,2.145]
[1756068062715,1.0593,4790.1,4789.8,2.145]
[1756068062920,1.7211,4790.0,4789.9,2.56262]
[1756068063124,3.3078,4790.2,4790.1,2.5626]
[1756068063425,0.1,4790.2,4790.1,2.5626]
[1756068063922,0.1,4790.2,4790.1,6.5626]
[1756068064118,1.7211,4791.3,4791.2,1.5913]
[1756068064423,1.0593,4791.7,4791.5,0.41747]
[1756068064616,1.7211,4791.6,4791.4,1.1738]
[1756068064820,1.7211,4791.5,4791.4,1.1738]
[1756068065022,1.7211,4791.5,4791.4,2.1322]
[1756068065218,3.048,4792.0,4791.7,2.1322]
[1756068065412,1.0593,4791.8,4791.7,2.1322]
[1756068065616,3.7691,4791.8,4791.4,0.41748]
[1756068065821,2.048,4791.8,4791.5,2.1322]
[1756068066021,1.0,4792.0,4791.7,2.1322]
[1756068066222,2.7211,4792.0,4791.9,2.1322]
[1756068066416,1.0,4792.0,4791.9,2.1322]
[1756068068122,1.0,4792.0,4791.5,3.2078]
[1756068068317,1.0,4792.0,4790.2,0.18805805]
[1756068068318,3.7691,4791.5,4790.2,0.18805805]
[1756068068517,3.7691,4791.5,4790.0,3.2078]
[1756068068518,1.7211,4790.8,4789.8,1.1738]
[1756068068918,2.7098,4790.6,4790.0,0.41761]
[1756068069117,2.048,4791.0,4790.1,0.41759]
[1756068069320,1.7211,4790.9,4790.1,0.41759]
[1756068069515,1.7211,4790.9,4790.0,2.1322]
[1756068069719,2.7804,4790.4,4789.2,2.1322]
[1756068069920,2.7098,4790.0,4789.2,2.54988]
[1756068070120,1.7211,4789.9,4789.2,2.1322]
[1756068070323,1.0593,4789.8,4789.2,2.1322]
[1756068070924,1.0593,4789.8,4789.3,0.41767]
[1756068071120,1.0593,4789.8,4789.4,1.1738]
[1756068071321,1.7211,4789.6,4789.5,2.1322]
[1756068071520,2.7098,4789.6,4789.5,2.1322]
[1756068071721,4.9289,4790.5,4790.0,0.4176]
[1756068071925,3.2078,4790.5,4789.9,1.1738]
[1756068072120,3.7691,4790.4,4788.9,3.2078]
[1756068072319,3.2078,4789.9,4788.9,3.2078]
[1756068072519,3.2078,4789.9,4788.6,0.9584]
[1756068072720,1.7211,4789.7,4788.6,1.37613]
[1756068072926,3.7691,4789.8,4788.7,0.41772]
[1756068073114,3.2078,4789.9,4788.7,0.41772]
[1756068073320,1.7211,4789.5,4788.7,0.41772]
[1756068073625,1.7211,4789.5,4788.8,0.41771]
[1756068074727,1.0593,4789.3,4788.6,0.9584]
[1756068074932,1.7211,4789.7,4788.6,2.54993]
[1756068075132,2.048,4789.7,4788.6,2.54993]
[1756068075422,1.7211,4789.5,4788.6,2.54993]
[1756068075821,1.7211,4789.5,4788.9,0.4177]
[1756068076023,1.7211,4789.5,4788.7,0.41772]
[1756068076423,1.7211,4789.5,4788.6,2.1322]
[1756068076622,1.7211,4789.5,4788.3,4.2522]
[1756068076820,1.7211,4789.5,4789.2,0.41767]
[1756068077020,1.7211,4790.0,4789.3,2.1322]
[1756068077222,1.7211,4790.0,4789.4,1.1738]
[1756068077516,1.7211,4790.0,4789.4,1.59146]
[1756068077721,1.7211,4789.9,4789.7,0.41763]
[1756068078027,1.7211,4789.9,4789.8,2.1322]
[1756068079522,1.7211,4790.9,4790.1,1.1738]
[1756068079728,1.7211,4790.9,4790.7,2.1322]
[1756068079923,2.7098,4791.6,4790.6,2.1322]
[1756068080125,2.7098,4791.4,4790.6,2.1322]
[1756068080325,0.9887,4791.4,4791.1,0.41751]
[1756068080522,3.2078,4791.7,4791.2,2.1322]
[1756068080728,3.7691,4791.9,4791.6,2.1322]
[1756068080930,1.7211,4791.9,4791.8,2.1322]
[1756068081226,1.0,4792.0,4791.9,2.54964]
[1756068081630,3.7691,4792.4,4792.2,1.1738]
[1756068081824,4.9289,4792.9,4792.3,2.1322]
[1756068082128,4.9289,4792.9,4792.3,2.5496]
[1756068082432,1.7211,4792.8,4792.6,2.1322]
[1756068082622,1.7211,4792.7,4792.6,2.1322]
[1756068082826,1.7211,4792.7,4792.6,2.54958]
[1756068083527,3.2078,4792.9,4792.8,0.41737]
[1756068083722,2.048,4793.5,4793.4,1.37571]
[1756068083924,3.7691,4793.5,4793.4,0.9584]
[1756068084128,1.7211,4793.4,4792.7,5.34]
[1756068084322,1.7211,4793.4,4793.1,0.41733]
[1756068084627,1.7211,4793.3,4793.2,2.1322]
[1756068085023,1.7211,4794.1,4794.0,0.9584]
[1756068085233,1.7211,4794.5,4793.2,24.27919039]
[1756068085527,5.715,4794.8,4793.2,3.2078]
[1756068085728,3.7691,4793.9,4792.7,3.2078]
[1756068085928,3.7691,4794.2,4792.7,3.2078]
[1756068086129,3.2078,4794.3,4792.7,3.2078]
[1756068086327,3.7691,4794.1,4792.7,3.2078]
[1756068086534,2.7098,4793.9,4792.8,2.1322]
[1756068086735,2.7098,4793.9,4793.2,0.41733]
[1756068087035,1.7211,4793.9,4793.8,2.1322]
[1756068087228,1.0593,4794.4,4793.8,2.54947]
[1756068087429,2.7804,4794.2,4793.9,2.54946]
[1756068087631,1.8228,4794.1,4794.0,2.1169]
[1756068087830,1.8228,4794.8,4794.2,0.41724]
[1756068088026,1.8228,4794.8,4793.3,1.04331]
[1756068088027,1.8228,4794.8,4794.7,2.1169]
[1756068088230,1.0945,4795.4,4794.7,2.53589]
[1756068088533,2.9173,4795.2,4794.9,2.1169]
[1756068088733,1.8228,4795.1,4795.0,2.1169]
[1756068088931,2.875,4795.6,4795.3,0.41714]
[1756068089232,2.9173,4795.7,4795.5,0.41712]
[1756068089427,1.8228,4795.6,4795.5,0.41712]
[1756068089629,1.8228,4795.6,4795.5,1.37842]
[1756068089826,1.8228,4795.6,4795.5,2.53402]
[1756068090024,1.8228,4796.0,4795.6,0.41712]
[1756068090227,1.8228,4796.1,4795.6,1.1556]
[1756068090433,1.8228,4795.9,4795.3,2.1169]
[1756068090731,1.0522,4796.3,4795.7,0.41711]
[1756068091031,3.2078,4796.4,4795.1,3.2078]
[1756068091232,3.2078,4796.4,4793.4,1.04327]
[1756068091233,2.1467,4796.3,4795.2,0.41715]
[1756068091432,1.8228,4796.2,4795.2,2.1144]
[1756068091633,1.8228,4795.9,4795.2,2.1144]
[1756068092130,1.0945,4796.1,4795.6,2.1144]
[1756068092332,1.8228,4796.0,4795.8,0.4171]
[1756068092523,1.8228,4796.0,4795.9,2.1144]
[1756068092730,5.3545,4796.4,4795.9,0.9588]
[1756068092931,2.1467,4796.9,4796.4,0.41705]
[1756068093129,3.2078,4797.3,4796.4,2.1144]
[1756068093426,3.2078,4797.8,4797.3,1.57257]
[1756068093626,3.2078,4797.8,4797.6,2.53134]
[1756068093934,1.8228,4797.9,4797.7,0.41694]
[1756068094140,1.8228,4797.9,4797.8,2.1144]
[1756068094329,2.875,4798.4,4797.8,2.1144]
[1756068094629,3.2078,4798.5,4797.7,0.1183804]
[1756068094839,3.2078,4798.5,4797.6,0.41695]
[1756068095032,1.8228,4798.3,4797.8,0.41693]
[1756068095337,1.8228,4798.2,4798.0,2.1144]
[1756068095535,1.8228,4798.2,4798.1,2.1144]
[1756068095729,1.8228,4798.2,4797.7,0.41694]
[1756068095927,1.8228,4797.7,4797.5,4.28537429]
[1756068096136,3.9695,4798.3,4797.6,2.1144]
[1756068096533,1.8228,4798.2,4797.6,0.9588]
[1756068096929,1.8228,4798.2,4797.5,3.2078]
[1756068097232,1.8228,4798.2,4797.1,21.33299]
[1756068097233,2.1467,4797.9,4797.0,3.2078]
[1756068097434,2.1467,4797.9,4795.8,1.04275]
[1756068097435,3.2078,4797.5,4795.4,2.9222]
[1756068097636,1.8228,4796.2,4795.6,0.41712]
[1756068097828,7.1773,4796.9,4796.1,0.41707]
[1756068098032,3.2078,4796.9,4796.5,3.9111]
[1756068098231,3.2078,4796.9,4796.7,0.41702]
[1756068098432,3.2078,4796.9,4796.7,0.9889]
[1756068098637,3.2078,4796.9,4796.6,1.1556]
[1756068098935,3.9695,4797.4,4796.8,3.9111]
[1756068099129,3.9695,4796.9,4796.2,3.9111]
[1756068099335,3.9695,4796.8,4796.5,0.41704]
[1756068099633,3.2078,4797.0,4796.8,3.9111]
[1756068099940,3.2078,4797.0,4795.9,3.2078]
[1756068099941,3.9695,4796.8,4796.5,3.9111]
[1756068100130,3.9695,4796.8,4796.5,4.32814]
[1756068100734,3.2078,4797.0,4796.7,2.9222]
[1756068100932,2.1467,4796.9,4796.7,2.7555]
[1756068101235,3.9695,4796.9,4796.2,1.7666]
[1756068101841,3.9695,4796.9,4796.3,0.41706]
[1756068102135,3.9695,4796.9,4796.2,1.7666]
[1756068102136,3.2078,4797.0,4796.7,2.7555]
[1756068102330,1.8228,4798.2,4798.1,2.7555]
[1756068102642,1.8228,4798.8,4798.6,0.41686]
[1756068102941,3.2078,4798.9,4798.8,2.9222]
[1756068103134,1.0,4799.0,4798.9,0.41684]
[1756068103438,1.8228,4798.9,4798.2,1.7666]
[1756068103636,1.0,4799.0,4798.1,0.4169]
[1756068103837,1.0,4799.0,4797.8,20.888]
[1756068103838,3.9695,4798.8,4797.8,20.888]
[1756068104136,3.9695,4798.8,4797.8,21.9955914]
[1756068104335,1.0,4799.0,4798.4,0.41687]
[1756068104537,3.9695,4798.7,4798.5,0.41686]
[1756068104739,1.0,4799.0,4798.3,0.41688]
[1756068104940,3.9695,4798.4,4798.3,0.41688]
[1756068105635,3.9695,4798.5,4797.8,21.0066914]
[1756068105840,3.2078,4798.6,4798.0,0.41691]
[1756068106140,3.9695,4798.4,4798.2,0.41689]
[1756068106341,3.9695,4798.3,4798.2,0.41689]
[1756068107634,3.9695,4798.5,4797.8,21.0066914]
[1756068107834,3.2078,4798.6,4797.8,0.1186914]
[1756068108034,3.9695,4798.5,4797.9,0.41692]
[1756068108238,3.9695,4798.5,4797.8,20.876]
[1756068108440,3.9695,4798.5,4798.3,0.41688]
[1756068108741,3.9695,4798.4,4798.3,0.41688]
[1756068109046,3.2078,4798.6,4798.0,0.41691]
[1756068109231,2.37712803,4798.5,4797.9,2.1445]
[1756068109431,0.55432803,4798.4,4798.0,0.41691]
[1756068109742,0.55432803,4798.3,4798.2,0.4169]
[1756068110035,3.47236553,4798.5,4798.3,0.41688]
[1756068110238,1.0,4799.0,4798.9,0.41683]
[1756068110436,1.55565168,4799.0,4798.9,3.33903]
[1756068110837,1.55565168,4799.0,4798.9,4.32793]
[1756068111838,1.0,4799.0,4798.9,4.32793]
[1756068112432,0.51905,4799.0,4798.9,7.20088032]
[1756068112637,2.2467,4800.2,4800.1,3.9111]
[1756068112638,0.1,4800.2,4800.1,3.9111]
[1756068112837,0.1,4800.2,4800.1,24.7741]
[1756068113039,0.1,4800.2,4800.1,25.03386282]
[1756068113640,0.1,4800.2,4800.1,25.03396415]
[1756068113840,0.1,4800.2,4800.1,25.22309293]
[1756068114040,0.1,4800.2,4800.1,25.22310583]
[1756068114440,0.1,4800.2,4800.1,25.22311732]
[1756068114636,0.1,4800.2,4800.1,4.36011732]
[1756068114940,0.1,4800.2,4800.1,21.11986415]
[1756068114941,4.0695,4800.2,4800.1,21.11986415]
[1756068115141,4.61834424,4800.2,4800.1,21.1198514]
[1756068116045,1.74334424,4800.2,4800.1,22.8864514]
[1756068116241,0.64884424,4800.2,4800.1,25.0309514]
[1756068116443,0.64884424,4800.2,4800.1,25.03136322]
[1756068116840,0.64884424,4800.2,4800.1,25.22060272]
[1756068117846,0.64884424,4800.2,4800.1,25.20760272]
[1756068118945,0.64884424,4800.2,4800.1,27.86534499]
[1756068119145,0.64884424,4800.2,4800.1,27.86234499]
[1756068119345,0.64884424,4800.2,4800.1,25.20260272]
[1756068119851,0.64884424,4800.2,4800.1,25.20160272]
[1756068120044,1.79284424,4800.2,4800.1,23.05710272]
[1756068120237,0.64884424,4800.2,4800.1,23.05628334]
[1756068120439,8.58464424,4800.2,4800.1,0.44968334]
[1756068120752,8.58464424,4800.2,4800.1,0.26044384]
[1756068121347,0.64884424,4800.2,4800.1,3.24606848]
[1756068121649,0.64884424,4800.2,4800.1,4.37516848]
[1756068122148,0.64884424,4800.2,4800.1,4.37585061]
[1756068122545,0.64884424,4800.2,4800.1,3.925]
[1756068122746,0.64884424,4800.2,4800.1,11.06166086]
[1756068122945,0.64884424,4800.2,4800.1,11.0704174]
[1756068123250,0.1,4800.2,4800.1,11.0704174]
[1756068123548,0.1,4800.2,4800.1,4.3847962]
[1756068123745,0.1,4800.2,4800.1,25.33682525]
[1756068123942,3.2078,4801.2,4800.3,1.04179]
[1756068124141,0.53636143,4801.1,4801.0,0.41665]
[1756068124350,0.53636143,4801.1,4801.0,25.6314462]
[1756068124654,1.144,4801.8,4801.7,0.41659]
[1756068124844,4.4719274,4801.8,4801.7,21.51541496]
[1756068125040,0.5361274,4801.8,4801.7,25.44041496]
[1756068125239,0.5361274,4801.8,4801.7,24.31131496]
[1756068125443,3.9358,4801.7,4801.3,20.826]
[1756068125743,7.7439274,4801.8,4801.3,21.24262]
[1756068125744,3.9358,4801.4,4801.3,21.24262]
[1756068125943,4.4719274,4801.4,4801.3,20.826]
[1756068126546,0.5361274,4801.4,4801.3,23.6219]
[1756068126740,2.1272,4802.2,4801.3,24.2236385]
[1756068126941,3.2078,4802.8,4802.0,1.8345]
[1756068127247,2.1272,4802.4,4802.0,20.822]
[1756068127443,2.1272,4802.2,4802.0,20.822]
[1756068127643,0.9832,4802.0,4800.4,2.7959]
[1756068127848,2.1272,4800.6,4800.3,21.23771]
[1756068128042,2.1272,4800.6,4800.3,20.821]
[1756068128247,3.9358,4800.4,4799.3,0.4168]
[1756068128446,3.9358,4799.8,4799.4,21.00912395]
[1756068128652,3.9358,4799.6,4799.5,0.19012395]
[1756068128854,3.9358,4799.5,4799.4,21.23579]
[1756068129054,4.46287274,4799.5,4799.4,21.00927555]
[1756068129353,1.8086,4800.7,4800.5,0.41669]
[1756068129648,0.9832,4801.0,4800.9,0.41666]
[1756068129853,0.52758653,4801.0,4800.9,4.34166]
[1756068130042,0.52758653,4801.0,4800.9,8.53185155]
[1756068130242,1.144,4802.2,4802.1,0.41656]
[1756068130450,1.144,4802.2,4802.1,21.42175155]
[1756068130950,3.9358,4802.2,4802.1,21.00519155]
[1756068131547,4.0,4802.2,4801.6,0.20618679]
[1756068131751,3.9358,4801.8,4801.7,21.00533806]
[1756068131946,3.9358,4801.8,4801.7,21.00539242]
[1756068132150,3.9358,4801.7,4801.3,20.813]
[1756068132358,3.9358,4801.8,4801.4,0.19101517]
[1756068132551,3.2078,4801.9,4801.5,0.60765173]
[1756068132749,3.9358,4801.6,4801.5,0.4166]
[1756068133056,1.144,4801.9,4801.8,3.21248]
[1756068133247,3.2078,4802.4,4802.3,2.7959]
[1756068133450,3.2078,4802.4,4802.3,23.6059]
[1756068133651,3.2078,4802.4,4802.3,24.89310384]
[1756068133855,3.2078,4802.9,4802.3,28.89310384]
[1756068134059,4.3518,4804.0,4803.4,0.41644]
[1756068134258,3.9358,4803.6,4803.5,0.19100384]
[1756068134750,1.144,4803.6,4803.5,23.79490384]
[1756068135353,3.2078,4804.0,4803.5,20.99759646]
[1756068135551,3.2078,4804.0,4803.7,2.7959]
[1756068135756,1.144,4803.9,4803.8,3.21231]
[1756068136151,4.3518,4804.6,4803.7,2.04410286]
[1756068136358,3.9358,4804.5,4803.8,20.805]
[1756068136654,1.144,4804.4,4803.8,20.805]
[1756068136861,3.2078,4804.6,4804.5,2.7959]
[1756068137154,3.2078,4805.3,4804.7,0.9614]
[1756068137360,3.2078,4805.3,4805.2,2.7959]
[1756068137554,3.2078,4805.3,4805.2,24.6911]
[1756068138258,3.2078,4805.3,4805.2,24.6901]
[1756068138459,4.3518,4806.5,4805.8,0.41623]
[1756068138655,3.2078,4806.5,4806.4,0.41618]
[1756068138956,3.9358,4806.5,4805.5,0.41625]
[1756068139155,3.2078,4806.1,4805.3,2.7959]
[1756068139357,1.8086,4805.4,4805.2,20.797]
[1756068139560,1.144,4805.3,4805.2,20.797]
[1756068139756,1.144,4805.3,4804.7,29.999]
[1756068139757,0.9832,4805.2,4804.7,29.999]
[1756068139961,3.9358,4805.0,4804.8,20.796]
[1756068140162,1.144,4804.9,4804.8,20.796]
[1756068140361,2.9526,4805.5,4804.8,23.9932841]
[1756068140562,2.9526,4805.5,4804.8,23.5769641]
[1756068140765,2.9526,4805.5,4804.7,29.999]
[1756068140766,1.144,4805.0,4804.9,20.79]
[1756068140958,1.144,4805.0,4804.9,21.7514]
[1756068141158,3.2078,4805.2,4804.9,21.20631]
[1756068141353,2.1272,4805.1,4804.7,29.999]
[1756068141666,2.9526,4805.0,4804.2,20.789]
[1756068141860,3.9358,4804.3,4804.2,20.789]